[Event "24th Bosnjaci Open 2019"]
[Site "Bosnjaci"]
[Date "2019.01.08"]
[Round "8.24"]
[White "Golub, Nikolina"]
[Black "Maroslavac, Ivana"]
[Result "1/2-1/2"]
[ECO "D02"]
[WhiteElo "1925"]
[BlackElo "1637"]
[Annotator "NA"]
[PlyCount "89"]
[EventDate "2019.01.03"]
[EventType "swiss"]
[EventCountry "CRO"]
[SourceTitle "playchess.com"]
[Source "ChessBase"]
[SourceQuality "1"]
[TimeControl "5400+30"]

1. d4 {[%emt 0:00:30]} Nf6 {[%emt 0:00:30]} 2. Nf3 {[%emt 0:00:00]} e6 {[%emt 0:00:00]} 3. Bf4 {[%emt 0:00:00]} Be7 {[%emt 0:02:00]} 4. Nbd2 {[%emt 0:00:00]} d5 {[%emt 0:02:30]} 5. e3 {[%emt 0:00:00]} O-O {[%emt 0:00:30]} 6. h3 {[%emt 0:00:30] D02: 1 d4 d5 2 Nf3 sidelines, including 2...Nf6 3 g3 and 2...Nf6 3 Bf4} b6 {[%emt 0:02:30]} (6... c5 7. c3 b6 8. Bd3 Ba6 9. Bxa6 Nxa6 10. O-O Nb8 11. Qe2 Nc6 12. Rad1 cxd4 13. exd4 Nd7 14. Rfe1 Re8 15. Bg3 a6 16. a4 {1-0 (39) Alekseenko,K (2561)-Eliseev,U (2602) Loo 2016}) 7. Bd3 {[%emt 0:00:00]} h6 {[%emt 0:03:30]} 8. O-O {[%emt 0:00:00]} Nbd7 {[%emt 0:02:30]} 9. e4 $146 {[%emt 0:02:30]} ({Predecessor:} 9. Ne5 Nxe5 10. dxe5 Nd7 11. c3 Bb7 12. Qg4 Bg5 13. Bg3 {1-0 (25) Baur,H (1865)-Baier,P (1712) Bad Neuenahr 2014}) 9... dxe4 {[%emt 0:01:30]} 10. Nxe4 {[%emt 0:01:30]} Bb7 {[%emt 0:01:30]} 11. Nxf6+ {[%emt 0:02:30]} Nxf6 {[%emt 0:00:30]} 12. c3 {[%emt 0:01:30]} c5 {[%emt 0:02:30]} 13. dxc5 {[%emt 0:02:30]} Bxc5 {[%emt 0:00:30]} 14. Qe2 {[%emt 0:02:30]} Qe7 {[%emt 0:05:30]} 15. Rad1 {[%emt 0:04:30]} Rfd8 {[%emt 0:01:30]} 16. Rd2 {[%emt 0:02:30]} Bd6 {[%emt 0:07:30]} 17. Bxd6 {[%emt 0:00:30]} Rxd6 {[%emt 0:00:30]} 18. Nd4 {[%emt 0:07:30]} Qf8 {[%emt 0:08:30]} 19. Rfd1 {[%emt 0:08:30]} Rad8 {[%emt 0:01:30]} 20. Nb5 {[%emt 0:13:30]} R6d7 {[%emt 0:02:30]} 21. c4 {[%emt 0:00:30]} (21. Bc4 $11 {remains equal.}) 21... a6 {[%emt 0:06:30]} 22. Nc3 {[%emt 0:00:00]} Qe7 {[%emt 0:01:30]} 23. Qe3 {[%emt 0:01:00]} Rd6 {[%emt 0:08:30]} 24. Bf1 {[%emt 0:09:30]} Rxd2 {[%emt 0:00:30]} 25. Rxd2 {[%emt 0:00:00]} Rxd2 {[%emt 0:00:30]} 26. Qxd2 {[%emt 0:00:00]} Qd7 {[%emt 0:04:30]} 27. Qe3 {[%emt 0:04:30]} Qc6 {[%emt 0:00:30]} 28. f3 {[%emt 0:01:30]} Qc5 {[%emt 0:02:30]} 29. Qxc5 {[%emt 0:00:30]} bxc5 {[%emt 0:00:30]} 30. Bd3 {[%emt 0:01:30]} Kf8 {[%emt 0:00:00]} 31. a3 {[%emt 0:03:30]} a5 {[%emt 0:03:00]} 32. Kf2 {[%emt 0:04:30]} Ke7 {[%emt 0:00:30]} 33. Ke3 {[%emt 0:01:30]} Bc6 $11 {[%emt 0:02:30]} 34. Bc2 {[%emt 0:02:30]} Nd7 {[%emt 0:01:30]} 35. Nb1 {[%emt 0:04:30]} Nb6 {[%emt 0:02:30]} 36. Nd2 {[%emt 0:00:00]} Kd6 {[%emt 0:01:30]} 37. Bd3 {[%emt 0:02:00]} Na4 {[%emt 0:03:55]} 38. Nb3 {[%emt 0:03:30]} Nxb2 {[%emt 0:00:30]} 39. Nxa5 {[%emt 0:00:30]} Nxd3 {[%emt 0:00:30]} 40. Nxc6 {[%emt 0:00:30]} Ne1 {[%emt 0:00:30]} 41. Nd8 {[%emt 0:00:30]} Nxg2+ {[%emt 0:00:30]} 42. Kf2 {[%emt 0:00:30]} Nf4 {[%emt 0:00:30]} 43. Nxf7+ {[%emt 0:00:30]} Ke7 {[%emt 0:00:30]} 44. Ne5 {[%emt 0:00:30]} Nxh3+ {[%emt 0:00:30]} 45. Kg3 {[%emt 0:00:30]} 1/2-1/2

[Event "24th Bosnjaci Open 2019"]
[Site "Bosnjaci"]
[Date "2019.01.09"]
[Round "9.2"]
[White "Bobanac, Miro"]
[Black "Fercec, Nenad"]
[Result "0-1"]
[ECO "A05"]
[WhiteElo "2308"]
[BlackElo "2451"]
[Annotator "ChessBase"]
[PlyCount "84"]
[EventDate "2019.01.03"]
[EventType "swiss"]
[EventCountry "CRO"]
[SourceTitle "playchess.com"]
[Source "ChessBase"]
[SourceQuality "1"]
[TimeControl "5400+30"]

1. Nf3 {[%emt 0:00:30]} Nf6 {[%emt 0:01:30]} 2. e3 {[%emt 0:00:30]} g6 {[%emt 0:01:30]} 3. b4 {[%emt 0:01:30]} Bg7 {[%emt 0:00:30]} 4. Bb2 {[%emt 0:00:30]} O-O {[%emt 0:00:30]} 5. Be2 {[%emt 0:02:30]} d6 {[%emt 0:01:30]} 6. O-O {[%emt 0:00:30]} e5 {[%emt 0:00:30]} 7. d3 {[%emt 0:01:30]} Nc6 {[%emt 0:01:30]} 8. a3 {[%emt 0:01:30]} a6 {[%emt 0:02:30]} 9. Nbd2 {[%emt 0:02:30]} Re8 {[%emt 0:00:00]} 10. c4 {[%emt 0:00:30]} b6 {[%emt 0:02:00]} 11. Qc2 {[%emt 0:05:30]} h6 {[%emt 0:01:30]} 12. Rac1 {[%emt 0:08:30]} Bd7 {[%emt 0:02:30]} 13. Rfd1 {[%emt 0:02:30]} Qe7 {[%emt 0:01:30]} 14. Nb3 {[%emt 0:14:30]} a5 {[%emt 0:09:30]} 15. Bc3 {[%emt 0:07:30]} axb4 {[%emt 0:04:30]} 16. axb4 {[%emt 0:00:00]} Ra4 {[%emt 0:02:30]} 17. b5 {[%emt 0:03:00]} Nb4 {[%emt 0:01:30]} 18. Bxb4 {[%emt 0:05:30]} Rxb4 {[%emt 0:01:30]} 19. e4 {[%emt 0:00:00]} c6 {[%emt 0:05:30]} 20. bxc6 {[%emt 0:02:00]} Bxc6 {[%emt 0:00:00]} 21. Qc3 {[%emt 0:00:00]} Ra4 {[%emt 0:01:00]} 22. Ra1 {[%emt 0:00:00]} Rea8 {[%emt 0:00:00]} 23. Rxa4 {[%emt 0:00:30]} Rxa4 {[%emt 0:00:00]} 24. Ra1 {[%emt 0:00:00]} Qa7 {[%emt 0:01:30]} 25. Rxa4 {[%emt 0:04:00]} Qxa4 {[%emt 0:00:30]} 26. Nfd2 {[%emt 0:00:00]} Nd7 {[%emt 0:00:30]} 27. g3 {[%emt 0:13:00]} h5 {[%emt 0:01:30]} 28. Bd1 {[%emt 0:03:30]} Bh6 {[%emt 0:04:30]} 29. Bc2 {[%emt 0:00:30]} Qa3 {[%emt 0:03:30]} 30. Nb1 {[%emt 0:12:26]} Qa2 {[%emt 0:02:30]} 31. N3d2 {[%emt 0:00:31]} Nc5 {[%emt 0:02:30]} 32. Kf1 {[%emt 0:01:00]} b5 {[%emt 0:17:30]} 33. cxb5 {[%emt 0:03:09]} Bxb5 {[%emt 0:00:30]} 34. Kg2 {[%emt 0:00:14]} Qa6 {[%emt 0:00:30]} 35. d4 {[%emt 0:00:37]} exd4 {[%emt 0:03:30]} 36. Qxd4 {[%emt 0:00:12]} Qa2 {[%emt 0:01:30]} 37. Bd1 {[%emt 0:01:40]} Bd3 {[%emt 0:01:30]} 38. Qxd6 {[%emt 0:03:53]} Bxd2 {[%emt 0:01:30]} 39. Nxd2 {[%emt 0:01:05]} Qxd2 {[%emt 0:00:30]} 40. Qd8+ {[%emt 0:01:40]} Kh7 {[%emt 0:02:34]} 41. Qe7 {[%emt 0:00:21]} Bxe4+ {[%emt 0:00:26]} 42. Kh3 {[%emt 0:00:24]} Qxf2 {[%emt 0:00:40]} 0-1

[Event "24th Bosnjaci Open 2019"]
[Site "Bosnjaci"]
[Date "2019.01.09"]
[Round "9.3"]
[White "Zovko, Mario"]
[Black "Beletic, Daniel"]
[Result "1/2-1/2"]
[ECO "B07"]
[WhiteElo "2318"]
[BlackElo "2371"]
[Annotator "NA"]
[PlyCount "37"]
[EventDate "2019.01.03"]
[EventType "swiss"]
[EventCountry "CRO"]
[SourceTitle "playchess.com"]
[Source "ChessBase"]
[SourceQuality "1"]
[TimeControl "5400+30"]

{[%evp 12,36,30,33,45,32767,32767,29,42,25,37,27,31,-18,32767,32767,32767,-4,32767,-2,6,32767,-7,0,0,0,0]} 1. e4 {[%emt 0:00:30]} g6 {[%emt 0:00:30]} 2. d4 {[%emt 0:00:30]} Bg7 {[%emt 0:00:30]} 3. c3 {[%emt 0:00:30]} d6 {[%emt 0:01:30]} 4. Bd3 {[%emt 0:01:30]} Nf6 {[%emt 0:04:30]} 5. Nf3 {[%emt 0:03:30]} O-O {[%emt 0:00:30]} 6. O-O {[%emt 0:00:00]} Nbd7 {[%emt 0:02:30]} 7. Re1 {[%emt 0:01:00]} e5 {[%emt 0:00:30]} 8. Nbd2 {[%emt 0:01:30]} b6 {[%emt 0:00:30]} 9. a4 {[%emt 0:06:30]} a6 {[%emt 0:01:30] LiveBook: 24 Games B07: Pirc Defence: Miscellaneous Systems} 10. b3 {[%emt 0:03:30]} Re8 {[%emt 0:00:00]} 11. d5 {[%emt 0:03:30]} Bb7 $146 {[%emt 0:00:00]} ({Predecessor:} 11... Bh6 12. b4 Nh5 13. a5 Ng7 14. axb6 cxb6 15. c4 Bb7 16. Nb3 Bxc1 17. Qxc1 {1-0 (37) Oratovsky,M (2485)-Petran,P (2325) Cappelle-la-Grande 1996}) 12. Nf1 {[%emt 0:00:30]} (12. Bf1 $14) 12... c6 {[%emt 0:15:30]} 13. c4 {[%emt 0:06:30]} Nc5 {[%emt 0:06:30]} 14. Bc2 {[%emt 0:09:30]} a5 {[%emt 0:06:30]} 15. Ba3 {[%emt 0:07:30]} Bh6 {[%emt 0:03:30]} 16. Bc1 {[%emt 0:07:30]} Bxc1 {[%emt 0:03:30]} 17. Rxc1 {[%emt 0:03:30]} Kg7 {[%emt 0:01:30]} 18. Ng3 $1 {[%emt 0:05:30]} Rc8 $11 {[%emt 0:14:30]} 19. h3 {[%emt 0:05:30]} 1/2-1/2

[Event "24th Bosnjaci Open 2019"]
[Site "Bosnjaci"]
[Date "2019.01.09"]
[Round "9.4"]
[White "Klasan, Vladimir"]
[Black "Muha, Miljenko"]
[Result "1/2-1/2"]
[ECO "C01"]
[WhiteElo "2364"]
[BlackElo "2310"]
[Annotator "NA"]
[PlyCount "45"]
[EventDate "2019.01.03"]
[EventType "swiss"]
[EventCountry "CRO"]
[SourceTitle "playchess.com"]
[Source "ChessBase"]
[SourceQuality "1"]
[TimeControl "5400+30"]

1. e4 {[%emt 0:00:30]} e6 {[%emt 0:00:30]} 2. d4 {[%emt 0:00:00]} d5 {[%emt 0:00:30]} 3. Bd3 {[%emt 0:00:00]} dxe4 {[%emt 0:01:30]} 4. Bxe4 {[%emt 0:00:30]} Nf6 {[%emt 0:00:30]} 5. Bf3 {[%emt 0:00:00]} c5 {[%emt 0:01:30]} 6. Ne2 {[%emt 0:00:00]} Nc6 {[%emt 0:01:30] C01: French: Exchange Variation} 7. c3 {[%emt 0:00:30]} (7. Be3 Nd5 8. Bxd5 Qxd5 9. Nbc3 Qxg2 10. Rg1 Qf3 11. Nb5 Rb8 12. dxc5 Bd7 13. Nc7+ Kd8 14. Nb5 {0-1 (54) Kramnik,V (2808)-Caruana,F (2808) Stavanger 2017}) 7... Be7 {[%emt 0:02:30]} 8. O-O {[%emt 0:00:30]} O-O {[%emt 0:00:30]} 9. h3 $146 {[%emt 0:00:00]} ({Predecessor:} 9. Re1 Bd7 10. Bg5 cxd4 11. Nxd4 {½-½ (11) Bezgodov,A (2543)-Dolmatov,S (2587) Elista 2001}) 9... cxd4 {[%emt 0:06:30]} 10. Nxd4 {[%emt 0:16:00]} Nxd4 {[%emt 0:07:30]} 11. Qxd4 {[%emt 0:05:30]} Qxd4 {[%emt 0:10:30]} 12. cxd4 {[%emt 0:00:30]} Rd8 {[%emt 0:01:30]} 13. Rd1 {[%emt 0:00:30]} Rb8 {[%emt 0:12:30]} 14. Nc3 {[%emt 0:02:30]} b6 {[%emt 0:00:30]} 15. Bf4 {[%emt 0:12:30]} Bd6 {[%emt 0:00:30]} 16. Bxd6 {[%emt 0:01:30]} Rxd6 {[%emt 0:00:00]} 17. d5 {[%emt 0:04:30]} exd5 {[%emt 0:12:00]} 18. Nxd5 {[%emt 0:00:30]} Nxd5 {[%emt 0:00:30]} 19. Bxd5 {[%emt 0:02:30]} Rd7 {[%emt 0:01:30]} 20. Bb3 {[%emt 0:03:30]} Rbb7 $11 {[%emt 0:01:30]} 21. Rac1 {[%emt 0:11:30]} Rxd1+ {[%emt 0:01:30]} 22. Bxd1 {[%emt 0:03:30]} Be6 {[%emt 0:00:30]} 23. Bb3 {[%emt 0:01:30]} 1/2-1/2

[Event "24th Bosnjaci Open 2019"]
[Site "Bosnjaci"]
[Date "2019.01.09"]
[Round "9.8"]
[White "Goric, Esad"]
[Black "Ivekovic, Bozidar"]
[Result "0-1"]
[ECO "A37"]
[WhiteElo "2260"]
[BlackElo "2398"]
[Annotator "NA"]
[PlyCount "66"]
[EventDate "2019.01.03"]
[EventType "swiss"]
[EventCountry "CRO"]
[SourceTitle "playchess.com"]
[Source "ChessBase"]
[SourceQuality "1"]
[TimeControl "5400+30"]

1. Nf3 {[%emt 0:00:30]} c5 {[%emt 0:02:30]} 2. c4 {[%emt 0:00:30]} Nc6 {[%emt 0:00:30]} 3. Nc3 {[%emt 0:00:30]} g6 {[%emt 0:00:00]} 4. g3 {[%emt 0:00:30]} Bg7 {[%emt 0:00:00]} 5. Bg2 {[%emt 0:00:00]} e6 {[%emt 0:00:00]} 6. O-O {[%emt 0:00:00]} Nge7 {[%emt 0:00:00]} 7. d3 {[%emt 0:00:30]} d5 {[%emt 0:00:30]} 8. cxd5 {[%emt 0:04:30]} exd5 {[%emt 0:00:00]} 9. Bf4 {[%emt 0:00:30]} O-O {[%emt 0:02:00] A37: Symmetrical English vs ...g6: 4 Bg2 Bg7 5 Nf3} 10. Qc1 {[%emt 0:06:30]} b6 {[%emt 0:08:30]} 11. Bh6 {[%emt 0:00:30] LiveBook: 12 Games} d4 {[%emt 0:07:30]} 12. Bxg7 {[%emt 0:02:30]} Kxg7 {[%emt 0:00:00]} 13. Nd1 $146 {[%emt 0:06:30]} ({Predecessor:} 13. Ne4 Be6 14. h4 h6 15. Ned2 Nd5 16. Nc4 Qc7 17. e4 dxe3 18. Nxe3 Nxe3 19. Qxe3 {0-1 (30) Khajrutdinov,I (2097)-Kokarev,D (2608) St Petersburg 2018}) 13... Be6 {[%emt 0:08:00]} 14. Qd2 {[%emt 0:14:30]} Qd6 {[%emt 0:07:30]} 15. Ng5 {[%emt 0:01:30]} Bd5 {[%emt 0:00:30]} 16. Ne4 {[%emt 0:00:30]} Qd7 {[%emt 0:01:30]} 17. Qf4 {[%emt 0:15:30]} f5 {[%emt 0:02:30]} 18. Nd2 $2 {[%emt 0:06:30]} (18. Bh3) 18... Bxg2 {[%emt 0:01:30]} 19. Kxg2 {[%emt 0:00:00]} Nd5 {[%emt 0:00:30]} 20. Qh4 {[%emt 0:00:00]} Rae8 {[%emt 0:00:00]} 21. a3 {[%emt 0:08:30]} Rxe2 {[%emt 0:02:00]} 22. Nf3 {[%emt 0:00:30]} a5 {[%emt 0:05:30]} 23. Rc1 {[%emt 0:01:30]} Rfe8 {[%emt 0:00:30]} 24. Kg1 {[%emt 0:00:00]} h6 {[%emt 0:00:30]} 25. Qh3 $19 {[%emt 0:00:00]} Nce7 {[%emt 0:05:30]} 26. Re1 {[%emt 0:02:30]} Rxe1+ {[%emt 0:01:30]} 27. Nxe1 {[%emt 0:00:00]} Nc6 {[%emt 0:00:30]} 28. Qf1 {[%emt 0:06:00]} Qe6 {[%emt 0:03:30]} 29. Nf3 {[%emt 0:00:00]} Ne5 {[%emt 0:00:30]} 30. Nd2 {[%emt 0:02:00]} g5 {[%emt 0:03:30]} 31. h3 {[%emt 0:02:30]} f4 {[%emt 0:02:30]} 32. Kh2 {[%emt 0:01:42]} fxg3+ {[%emt 0:02:30]} 33. fxg3 {[%emt 0:00:03]} Rf8 {[%emt 0:00:30]} 0-1

[Event "24th Bosnjaci Open 2019"]
[Site "Bosnjaci"]
[Date "2019.01.09"]
[Round "9.9"]
[White "Stocko, Josip"]
[Black "Dabic, Stjepan"]
[Result "1/2-1/2"]
[ECO "A88"]
[WhiteElo "2282"]
[BlackElo "2077"]
[Annotator "NA"]
[PlyCount "69"]
[EventDate "2019.01.03"]
[EventType "swiss"]
[EventCountry "CRO"]
[SourceTitle "playchess.com"]
[Source "ChessBase"]
[SourceQuality "1"]
[TimeControl "5400+30"]

1. d4 {[%emt 0:00:30]} f5 {[%emt 0:00:30]} 2. g3 {[%emt 0:00:00]} Nf6 {[%emt 0:00:30]} 3. Bg2 {[%emt 0:00:00]} g6 {[%emt 0:00:30]} 4. c4 {[%emt 0:01:30]} Bg7 {[%emt 0:00:00]} 5. Nc3 {[%emt 0:00:30]} O-O {[%emt 0:00:00]} 6. Nf3 {[%emt 0:02:30]} d6 {[%emt 0:00:30]} 7. O-O {[%emt 0:01:30]} c6 {[%emt 0:00:30]} 8. d5 {[%emt 0:04:30]} e5 {[%emt 0:04:30] LiveBook: 678 Games} 9. Rb1 {[%emt 0:02:30] A88: Dutch Defence: Leningrad System: 5 Nf3 0-0 6 0-0 d6 7 Nc3 c6} (9. dxe6 Bxe6 10. Qd3 Nbd7 11. Bf4 d5 12. Ng5 dxc4 13. Qd6 Bf7 14. Ne6 Bxe6 15. Qxe6+ Kh8 16. Qxc4 Re8 17. Rad1 Qa5 18. b4 Qb6 {1-0 (35) Harikrishna,P (2727)-Mamedyarov,S (2765) Beijing 2014}) 9... Qe7 $146 {[%emt 0:10:30]} ({Predecessor:} 9... Na6 10. b4 c5 11. a3 h6 12. Nd2 g5 13. f3 Rf7 14. e3 h5 15. Rb3 Bh6 16. Qe2 Qe7 {0-1 (31) Cu Hor,W (2286)-Ortiz Suarez,I (2623) Duran 2014}) 10. b4 {[%emt 0:05:30]} h6 {[%emt 0:05:30]} 11. dxc6 {[%emt 0:01:30]} Nxc6 {[%emt 0:02:30]} 12. b5 {[%emt 0:01:30]} Nd8 {[%emt 0:00:30]} 13. a4 {[%emt 0:04:30]} Ne6 {[%emt 0:04:30]} 14. a5 {[%emt 0:01:30]} Nc5 {[%emt 0:02:30]} 15. Ne1 {[%emt 0:03:30]} Be6 {[%emt 0:01:30]} 16. Nd5 {[%emt 0:02:30]} Nxd5 {[%emt 0:01:30]} 17. Bxd5 {[%emt 0:08:30]} Rac8 {[%emt 0:04:30]} 18. Ba3 {[%emt 0:02:30]} Rfd8 {[%emt 0:01:30]} 19. Ng2 {[%emt 0:20:30]} Ne4 {[%emt 0:05:30]} 20. Rc1 {[%emt 0:05:30]} Nf6 {[%emt 0:01:30]} 21. Bxe6+ {[%emt 0:02:30]} Qxe6 {[%emt 0:00:30]} 22. Qb3 $11 {[%emt 0:03:30]} d5 {[%emt 0:03:30]} 23. cxd5 {[%emt 0:01:30]} Qxd5 {[%emt 0:00:30]} 24. Qxd5+ {[%emt 0:02:30]} Nxd5 {[%emt 0:00:30]} 25. Rfd1 {[%emt 0:00:30]} Rxc1 {[%emt 0:00:30]} 26. Rxc1 {[%emt 0:01:30]} e4 {[%emt 0:01:30]} 27. Kf1 {[%emt 0:06:56]} Nc3 {[%emt 0:02:30]} 28. b6 {[%emt 0:00:43]} axb6 {[%emt 0:00:30]} 29. axb6 {[%emt 0:00:02]} Nd5 {[%emt 0:00:30]} 30. Nf4 {[%emt 0:03:28]} Nxf4 {[%emt 0:04:30]} 31. gxf4 {[%emt 0:00:02]} Bd4 {[%emt 0:00:30]} 32. Rc7 {[%emt 0:05:05]} Bxb6 {[%emt 0:00:00]} 33. Rxb7 {[%emt 0:00:08]} Bd4 {[%emt 0:00:00]} 34. Kg2 {[%emt 0:01:53]} Bg7 {[%emt 0:02:30]} 35. Be7 {[%emt 0:02:33]} 1/2-1/2

[Event "24th Bosnjaci Open 2019"]
[Site "Bosnjaci"]
[Date "2019.01.09"]
[Round "9.10"]
[White "Lazor, Vladimir"]
[Black "Tomas, Ante"]
[Result "1/2-1/2"]
[ECO "C88"]
[WhiteElo "2164"]
[BlackElo "2102"]
[Annotator "NA"]
[PlyCount "40"]
[EventDate "2019.01.03"]
[EventType "swiss"]
[EventCountry "CRO"]
[SourceTitle "playchess.com"]
[Source "ChessBase"]
[SourceQuality "1"]
[TimeControl "5400+30"]

1. e4 {[%emt 0:05:30]} e5 {[%emt 0:00:30]} 2. Nf3 {[%emt 0:00:00]} Nc6 {[%emt 0:00:00]} 3. Bb5 {[%emt 0:00:00]} a6 {[%emt 0:00:00]} 4. Ba4 {[%emt 0:00:30]} Nf6 {[%emt 0:01:30]} 5. O-O {[%emt 0:00:00]} Be7 {[%emt 0:06:30]} 6. Re1 {[%emt 0:00:00]} b5 {[%emt 0:00:30]} 7. Bb3 {[%emt 0:00:30]} O-O {[%emt 0:00:30]} 8. d3 {[%emt 0:02:30]} d5 {[%emt 0:02:30]} 9. exd5 {[%emt 0:03:30]} Nxd5 {[%emt 0:00:30]} 10. Nxe5 {[%emt 0:02:30] LiveBook: 4 Games C88: Closed Ruy Lopez: Anti-Marshall Systems} Nd4 {[%emt 0:00:00]} 11. Nc3 {[%emt 0:08:30]} Nb4 {[%emt 0:04:00]} ({Predecessor:} 11... Nf6 12. Be3 Bb7 13. Nxf7 Rxf7 14. Bxd4 Nd5 15. Qh5 c6 16. Nxd5 cxd5 17. Re3 g6 18. Qg4 Bg5 19. Rf3 Rxf3 20. Qxf3 a5 21. a3 Qd6 22. Re1 {1-0 (22) Macieja,B (2608)-Bulski,K (2549) Chorzow 2013}) 12. Ne4 {[%emt 0:12:30]} Nxb3 {[%emt 0:12:30]} 13. axb3 {[%emt 0:00:30]} f6 {[%emt 0:08:30]} 14. Nf3 {[%emt 0:02:30]} Bb7 {[%emt 0:04:30]} 15. Bd2 {[%emt 0:04:30]} Re8 {[%emt 0:02:30]} 16. Rc1 {[%emt 0:02:30]} (16. Bxb4 $16 Bxb4 17. c3) 16... Na2 {[%emt 0:06:30]} 17. Ra1 {[%emt 0:01:30]} Nb4 {[%emt 0:00:30]} 18. Rc1 $11 {[%emt 0:06:30]} Na2 {[%emt 0:01:30]} 19. Ra1 {[%emt 0:07:30]} Nb4 {[%emt 0:00:30]} 20. Rc1 {[%emt 0:00:30]} Qd5 {[%emt 0:00:30]} 1/2-1/2

[Event "24th Bosnjaci Open 2019"]
[Site "Bosnjaci"]
[Date "2019.01.09"]
[Round "9.11"]
[White "Ivekovic, Tihana"]
[Black "Sipic, Hrvoje"]
[Result "0-1"]
[ECO "A58"]
[WhiteElo "2071"]
[BlackElo "2213"]
[Annotator "NA"]
[PlyCount "82"]
[EventDate "2019.01.03"]
[EventType "swiss"]
[EventCountry "CRO"]
[SourceTitle "playchess.com"]
[Source "ChessBase"]
[SourceQuality "1"]
[TimeControl "5400+30"]

1. d4 {[%emt 0:00:30]} c5 {[%emt 0:00:30]} 2. d5 {[%emt 0:00:00]} Nf6 {[%emt 0:00:30]} 3. c4 {[%emt 0:00:00]} b5 {[%emt 0:00:30]} 4. cxb5 {[%emt 0:00:00]} a6 {[%emt 0:00:00]} 5. bxa6 {[%emt 0:00:00]} Bxa6 {[%emt 0:00:00]} 6. Nc3 {[%emt 0:00:30]} g6 {[%emt 0:00:30]} 7. g3 {[%emt 0:00:00]} Bg7 {[%emt 0:00:30]} 8. Bg2 {[%emt 0:00:00]} d6 {[%emt 0:01:30]} 9. Nf3 {[%emt 0:00:30]} O-O {[%emt 0:00:30]} 10. O-O {[%emt 0:00:30]} Nbd7 {[%emt 0:00:30]} 11. Rb1 {[%emt 0:00:00]} Qa5 {[%emt 0:02:30]} 12. Qc2 {[%emt 0:09:00]} Rfb8 {[%emt 0:01:30]} 13. Rd1 {[%emt 0:06:30]} Ng4 {[%emt 0:05:30] LiveBook: 26 Games A58: Benko/Volga Gambit: Lines with 5 bxa6} 14. Bg5 {[%emt 0:04:30]} (14. Bd2 Nge5 15. Nxe5 Nxe5 16. b3 Bc8 17. Na4 Qa6 18. Bc3 Bf5 19. Be4 Bd7 20. f4 Ng4 21. Bxg7 Kxg7 {0-1 (36) Johannessen,L (2559)-Carlsen,M (2646) Tromsoe 2006}) 14... Kf8 {[%emt 0:06:30]} 15. e4 $146 {[%emt 0:16:30]} ({Predecessor:} 15. Bd2 Nge5 16. b3 Qa3 17. Ng5 Kg8 18. f4 Ng4 19. e3 c4 20. h3 Ngf6 21. e4 cxb3 22. Rxb3 Rxb3 23. Qxb3 {½-½ (23) Bujisho,B (2402)-Piceu,T (2375) Condom 2008}) 15... Nge5 {[%emt 0:20:30]} 16. Rbc1 {[%emt 0:28:30]} c4 {[%emt 0:05:30]} 17. Nd4 {[%emt 0:00:30]} Qb6 {[%emt 0:08:30]} (17... Nc5 $1 $11 {remains equal.}) 18. Na4 {[%emt 0:04:30]} Qb7 {[%emt 0:07:30]} 19. Nc6 {[%emt 0:05:30]} Re8 {[%emt 0:04:30]} 20. Nc3 {[%emt 0:03:27]} Nd3 {[%emt 0:04:30]} 21. Rb1 {[%emt 0:00:12]} N7c5 {[%emt 0:06:30]} 22. b4 {[%emt 0:02:16]} cxb3 {[%emt 0:00:30]} 23. axb3 {[%emt 0:00:04]} Nb4 {[%emt 0:05:08]} 24. Nxb4 {[%emt 0:00:33]} Qxb4 {[%emt 0:00:08]} 25. Na4 {[%emt 0:01:38]} Nd7 {[%emt 0:01:24]} 26. Bd2 {[%emt 0:05:04]} Qb8 {[%emt 0:03:27]} 27. Bc3 {[%emt 0:00:37]} Ne5 {[%emt 0:01:03]} 28. Qd2 {[%emt 0:03:40]} Bb5 {[%emt 0:02:30]} 29. Bd4 {[%emt 0:01:32]} Qb7 {[%emt 0:02:17]} 30. h3 {[%emt 0:05:35]} Reb8 {[%emt 0:01:35]} 31. Ra1 {[%emt 0:00:49]} Be8 {[%emt 0:01:15]} 32. Nb6 {[%emt 0:00:51]} Ra6 {[%emt 0:00:58]} 33. Rxa6 {[%emt 0:00:13]} Qxa6 {[%emt 0:00:05]} 34. Qe3 {[%emt 0:00:21]} Qa3 {[%emt 0:02:08]} 35. Ra1 {[%emt 0:00:33]} Qb4 {[%emt 0:00:35]} 36. Rd1 {[%emt 0:00:58]} Qa3 {[%emt 0:00:49]} 37. Ra1 {[%emt 0:00:04]} Qb4 {[%emt 0:00:38]} 38. Rd1 {[%emt 0:00:04]} g5 {[%emt 0:02:08]} 39. Nc4 $11 {[%emt 0:01:47]} Qxb3 {[%emt 0:00:42]} 40. Nxe5 {[%emt 0:00:34]} Qxd1+ {[%emt 0:00:07]} 41. Bf1 {[%emt 0:00:04]} dxe5 {[%emt 0:00:11]} 0-1